[Event "44th Chess Olympiad Women 2022"]
[Site "Chennai"]
[Date "2022.07.30"]
[Round "2.21"]
[White "Monroy G., Nataly A."]
[Black "Varney, Zoe"]
[Result "0-1"]
[ECO "E90"]
[WhiteElo "1907"]
[BlackElo "2045"]
[Annotator "TA"]
[PlyCount "86"]
[EventDate "2022.07.29"]
[EventType "team-tourn"]
[EventCountry "IND"]
[SourceTitle "playchess.com"]
[Source "ChessBase"]
[SourceQuality "1"]
[WhiteTeam "Bolivia"]
[BlackTeam "England"]
[WhiteTeamCountry "BOL"]
[BlackTeamCountry "ENG"]
[TimeControl "40/5400+30:1800+30"]

{[%evp 15,86,22,30,0,0,-2,0,-3,-5,-6,0,-32,-40,-37,-61,-62,-75,-89,-107,-102,-86,-145,-97,-90,-89,-115,-117,-150,-90,-138,-67,-181,-179,-188,-183,-171,-169,-185,-145,-222,-223,-466,-528,-474,-10,-14,-14,-105,-100,-143,-8,-8,0,-120,0,-8,-7,-19,-18,-37,-8,-10,-19,-21,0,0,0,-26,0,-247,-256,-647,-637]} 1. d4 {[%emt 0:00:09]} Nf6 {[%emt 0:00:02]} 2. Nf3 {[%emt 0:00:10]} g6 {[%emt 0:00:06]} 3. c4 {[%emt 0:00:14]} Bg7 {[%emt 0:00:04]} 4. Nc3 {[%emt 0:00:33]} O-O {[%emt 0:00:08]} 5. e4 {[%emt 0:00:07]} d6 {[%emt 0:00:05]} 6. h3 {[%emt 0:00:06]} e5 {[%emt 0:00:19]} 7. d5 {[%emt 0:01:00]} a5 {[%emt 0:00:06]} 8. Bd3 {[%emt 0:03:39] 8.g4 is becoming the main line.} Na6 {[%emt 0:00:09]} 9. Be3 {[%emt 0:00:54] E90: King's Indian: Classical: Early deviations and 6 h3.} Nd7 {[%emt 0:07:46]} 10. g4 {[%emt 0:08:07]} Ndc5 {[%emt 0:04:34]} 11. Bc2 {[%emt 0:03:35] The position is equal.} f5 {[%emt 0:10:13]} 12. gxf5 {[%emt 0:08:00]} gxf5 {[%emt 0:00:35]} 13. Bg5 {[%emt 0:10:45]} Qe8 {[%emt 0:04:04]} 14. Rg1 {[%emt 0:06:44] [#] Hoping for Bh6.} Kh8 $146 {[%emt 0:16:51]} ({Predecessor:} 14... fxe4 15. Bh6 Rf7 16. Nxe4 Nxe4 17. Bxe4 Kh8 18. Bxg7+ Rxg7 19. Rxg7 Kxg7 20. Qd2 Qh5 21. O-O-O Bd7 22. Rg1+ Kh8 23. Rg5 Qxh3 24. Rg1 Rg8 25. Ng5 Qh5 26. Rh1 {0-1 (26) Billmann,A (1915)-Konsek,P (1938) Germany 2012}) 15. Nh4 {[%emt 0:03:44][%cal Rh4f5]} fxe4 {[%emt 0:12:39]} 16. Nxe4 {[%emt 0:02:50]} Nxe4 {[%emt 0:12:28]} (16... Bxh3 $2 17. Nxc5 Nxc5 18. Rh1 $18) 17. Bxe4 {[%emt 0:00:07]} Nc5 {[%emt 0:00:24]} (17... Bxh3 $2 18. Rh1 (18. Be3 Rf4 $16) 18... Rf4 19. Bxh7 Kxh7 20. Rxh3 $18) 18. Qe2 {[%emt 0:02:29]} ({White should try} 18. Qc2) 18... Nxe4 {[%emt 0:07:49]} (18... Bxh3 19. Rh1 Nxe4 20. Qxe4 $15) (18... b5 $142 $1 19. O-O-O bxc4) 19. Qxe4 $17 {[%emt 0:00:10]} Qh5 {[%emt 0:08:04]} (19... Bxh3 $6 20. Rh1 Qf7 21. Be3 $11) 20. Rg3 {[%emt 0:08:47]} Bd7 {[%emt 0:03:19]} (20... Bxh3 $2 21. Rxh3 Qxg5 22. Ng6+ Kg8 23. Nxf8 Rxf8 24. Qxh7+ Kf7 25. Qh5+ Qxh5 26. Rxh5 $18) 21. Qe2 {[%emt 0:24:14]} Qxe2+ {[%emt 0:00:00]} 22. Kxe2 {[%emt 0:00:04]} b5 {[%emt 0:00:00]} (22... e4 $17 {Strongly threatening ...b5.} 23. Rb1 Rf7) 23. b3 {[%emt 0:01:12]} (23. Rc1 $15) 23... a4 $19 {[%emt 0:00:00] aiming for ...axb3.} 24. Rd1 {[%emt 0:02:17]} axb3 {[%emt 0:00:00]} 25. axb3 {[%emt 0:00:05]} bxc4 {[%emt 0:00:08]} 26. bxc4 {[%emt 0:00:06]} Ra4 {[%emt 0:00:00]} 27. Rdg1 {[%emt 0:07:42]} (27. Rf3 $17) 27... Ra2+ {[%emt 0:00:00]} (27... Rxc4 28. Be7 Rc2+ 29. Kd1 Rfxf2 30. Rxg7 Rfd2+ 31. Ke1 Re2+ 32. Kd1 Red2+ 33. Ke1 Re2+ 34. Kd1 Red2+ $11) 28. Bd2 $2 {[%emt 0:00:15]} (28. Kd3) 28... Bh6 $1 {[%emt 0:00:00]} 29. Nf3 {[%emt 0:00:05]} e4 $2 {[%emt 0:00:00]} (29... Bf4 $19 30. Rg7 e4 31. Rxd7 exf3+ 32. Kxf3 Bxd2+ 33. Kg3 Rg8+ 34. Kh2 Bf4+ 35. Kh1 Rxf2 36. Rxg8+ Kxg8 37. Rxc7 Rh2+ 38. Kg1 Rxh3) 30. Ng5 $11 {[%emt 0:00:05][%cal Og5f7] Nf7+! would kill now.} Be8 {[%emt 0:00:00] Against Nf7+. Threatens to win with ...Bh5+.} 31. Nxe4 {[%emt 0:05:50]} (31. Rc1 $1 $11) 31... Bg6 {[%emt 0:00:00]} 32. Ng5 {[%emt 0:00:43]} Bh5+ {[%emt 0:00:00]} (32... Re8+ $1 $17 33. Kd1 Kg8) 33. Kd3 $1 {[%emt 0:01:10]} Bg6+ {[%emt 0:00:00]} (33... Rxf2 34. Nf7+ $1 {[%mdl 512]} Bxf7 35. Rg8+ $3 {[%mdl 512]} (35. Bc3+ Bg7 $16) 35... Bxg8 36. Bc3+) (33... Ra3+ $11 34. Bc3+ Bg7) 34. Ke2 $17 {[%emt 0:00:12]} Bh5+ {[%emt 0:00:00]} (34... Re8+ $1 $17 35. Kd1 Kg8) 35. Kd3 $1 $132 {[%emt 0:01:09][%mdl 2048] White puts up resistance} Ra3+ {[%emt 0:00:00]} (35... Rxf2 {gets mated.} 36. Nf7+ $1 {[%mdl 512]} Bxf7 37. Rg8+ $3 {[%mdl 512]} (37. Bc3+ Bg7 $16) 37... Bxg8 38. Bc3+) ({But not} 35... Bg6+ $6 36. Ke2 $15) 36. Bc3+ {[%emt 0:00:06]} Bg7 {[%emt 0:00:00] This bishop pair is nice.} 37. Ne4 {[%emt 0:00:33]} Bxc3 {[%emt 0:00:00]} (37... Bg6 $5 38. Kd2 Ra2+ 39. Ke3 Bxc3 40. Nxc3 Rc2 $15) 38. Nxc3 {[%emt 0:00:05]} Bg6+ {[%emt 0:00:00]} 39. Ke2 {[%emt 0:00:59]} Bh5+ {[%emt 0:00:00][%mdl 1024] Black has compensation.} 40. Kd3 {[%emt 0:00:55]} Bg6+ {[%emt 0:00:00]} 41. Ke2 {[%emt 0:30:04]} Bh5+ {[%emt 0:00:16]} (41... Rf4 $5 {[%cal Rf4c4]}) 42. Kf1 $2 {[%emt 0:00:00] [#]} (42. Kd3 $11) 42... Bf3 $1 $19 {[%emt 0:07:31]} 43. Ke1 $2 {[%emt 0:00:00]} (43. Rxf3 Rxf3 44. Ne2) 43... Rxc3 {[%emt 0:00:29] Weighted Error Value: White=0.57/Black=0.33} 0-1

[Event "44th Chess Olympiad Women 2022"]
[Site "Chennai"]
[Date "2022.07.30"]
[Round "2.22"]
[White "Repkova, Eva"]
[Black "Johannsdottir, Johanna Bjorg"]
[Result "1-0"]
[ECO "B91"]
[WhiteElo "2303"]
[BlackElo "1976"]
[Annotator "TA"]
[PlyCount "63"]
[EventDate "2022.07.29"]
[EventType "team-tourn"]
[EventCountry "IND"]
[SourceTitle "playchess.com"]
[Source "ChessBase"]
[SourceQuality "1"]
[WhiteTeam "Slovakia"]
[BlackTeam "Iceland"]
[WhiteTeamCountry "SVK"]
[BlackTeamCountry "ISL"]
[TimeControl "40/5400+30:1800+30"]

{[%evp 17,63,24,29,17,50,43,67,64,79,43,64,38,39,43,42,43,32,35,118,116,104,87,119,116,119,0,-3,0,285,283,312,304,333,315,330,315,309,316,300,291,239,218,364,364,358,304,917,917]} 1. e4 {[%emt 0:00:04]} c5 {[%emt 0:00:06]} 2. Nf3 {[%emt 0:00:05]} d6 {[%emt 0:00:05]} 3. d4 {[%emt 0:00:03]} cxd4 {[%emt 0:00:03]} 4. Nxd4 {[%emt 0:00:03]} Nf6 {[%emt 0:00:08]} 5. Nc3 {[%emt 0:00:05]} a6 {[%emt 0:00:03]} 6. g3 {[%emt 0:00:51]} g6 {[%emt 0:00:52]} 7. Bg2 {[%emt 0:02:34]} Bg7 {[%emt 0:00:06]} 8. h3 {[%emt 0:02:11]} O-O {[%emt 0:02:19]} 9. O-O {[%emt 0:04:25]} Nc6 {[%emt 0:01:27]} 10. Be3 {[%emt 0:00:07] B91: Sicilian Najdorf: 6 g3.} Ne5 {[%emt 0:12:10]} 11. b3 {[%emt 0:00:52]} Bd7 {[%emt 0:09:38]} 12. Qd2 {[%emt 0:03:07] White is slightly better.} Rc8 {[%emt 0:07:16]} 13. a4 {[%emt 0:03:45][%cal Ba2a4,Ba4a5][%mdl 32] [#]} Re8 $146 {[%emt 0:17:12]} ({Predecessor:} 13... Qc7 14. Nd5 Nxd5 15. exd5 Qc3 16. Qxc3 Rxc3 17. Rad1 Bf5 18. Bd2 Rcc8 19. Nxf5 gxf5 {0-1 (44) Adair,J (2484)-Gormally,D (2555) Birmingham 2019}) 14. a5 {[%emt 0:08:34]} Nc6 {[%emt 0:05:06]} 15. Nxc6 {[%emt 0:19:48]} Bxc6 {[%emt 0:00:28]} 16. Bb6 {[%emt 0:00:25]} Qd7 {[%emt 0:00:05]} 17. Rae1 {[%emt 0:10:22]} Bb5 {[%emt 0:14:29]} (17... e6 $14) 18. Nxb5 $16 {[%emt 0:00:18]} Qxb5 {[%emt 0:00:11]} 19. e5 $1 $36 {[%emt 0:00:15][%mdl 2048] Black is under strong pressure.} Nd7 {[%emt 0:05:44]} 20. c4 $1 {[%emt 0:10:44] White is more active.} (20. Bxb7 $6 Nxb6 21. axb6 Rb8 $11) (20. exd6 $6 Bc3 21. Qe3 Bxe1 $11) 20... Qxb3 {[%emt 0:00:31]} 21. Re3 {[%emt 0:04:02]} (21. exd6 $16 exd6 22. Bxb7 Nxb6 23. Bxc8 (23. axb6 Qxb6 24. Bxc8 Rxc8 $16) 23... Rxc8 24. axb6 Qxb6 25. Re7) 21... Qxc4 $11 {[%emt 0:03:22]} 22. Bd5 {[%emt 0:00:16] A strong pair of Bishops.} Qa4 {[%emt 0:00:52][%mdl 8192] [#]} (22... Nxb6 $11 {and Black is okay.} 23. Bxc4 Nxc4) 23. Re4 $1 $18 {[%emt 0:05:14]} Qb5 {[%emt 0:05:05] [#]} 24. Rb4 $1 {[%emt 0:01:50]} Rc2 {[%emt 0:00:08]} 25. Bxf7+ $1 {[%emt 0:03:15][%mdl 64] Decoy} Kxf7 {[%emt 0:01:51]} 26. Qf4+ {[%emt 0:00:05]} Kg8 {[%emt 0:00:25]} 27. Rxb5 {[%emt 0:00:09]} axb5 {[%emt 0:00:04]} 28. Qe4 {[%emt 0:01:55]} ({Resist} 28. exd6 Rc6 29. Be3 exd6 $18) 28... Rc6 {[%emt 0:01:51]} 29. exd6 {[%emt 0:01:35] Qe6+ is the strong threat.} Rxd6 {[%emt 0:01:27]} (29... Nxb6 {might work better.} 30. axb6 Rxd6 31. Qxb7 Bd4) 30. Bc7 {[%emt 0:02:03]} ({Much less strong is} 30. Qxb7 Nxb6 31. axb6 Bd4 $18) 30... Nc5 {[%emt 0:00:50]} 31. Qb4 {[%emt 0:00:16]} Na6 {[%emt 0:00:53]} (31... Rd5 32. Qxb5 Rc8) 32. Qb3+ {[%emt 0:00:08] Weighted Error Value: White=0.14 (very precise) /Black=0.50} 1-0

[Event "44th Chess Olympiad Women 2022"]
[Site "Chennai"]
[Date "2022.07.30"]
[Round "2.22"]
[White "Mrvova, Alena"]
[Black "Acevedo Mendez, Lisseth"]
[Result "1-0"]
[ECO "A05"]
[WhiteElo "2165"]
[BlackElo "1784"]
[Annotator "TA"]
[PlyCount "69"]
[EventDate "2022.07.29"]
[EventType "team-tourn"]
[EventCountry "IND"]
[SourceTitle "playchess.com"]
[Source "ChessBase"]
[SourceQuality "1"]
[WhiteTeam "Slovakia"]
[BlackTeam "Iceland"]
[WhiteTeamCountry "SVK"]
[BlackTeamCountry "ISL"]
[TimeControl "40/5400+30:1800+30"]

{[%evp 14,69,16,0,0,0,-8,-4,18,16,49,48,32,43,344,316,375,258,258,258,258,260,266,271,438,214,199,164,176,129,152,134,117,113,125,125,130,114,118,117,118,65,111,105,198,196,209,161,582,210,339,345,981,977,29984,836,29989,29990]} 1. Nf3 {[%emt 0:00:24]} Nf6 {[%emt 0:01:23]} 2. g3 {[%emt 0:01:02]} g6 {[%emt 0:00:09]} 3. Bg2 {[%emt 0:01:07]} Bg7 {[%emt 0:00:05]} 4. O-O {[%emt 0:01:17]} O-O {[%emt 0:00:13]} 5. Re1 {[%emt 0:00:47]} d6 {[%emt 0:01:03]} 6. e4 {[%emt 0:02:08]} c5 {[%emt 0:04:08]} 7. d3 {[%emt 0:05:41]} Nc6 {[%emt 0:01:19]} 8. Nbd2 {[%emt 0:02:36][%cal Bb1d2,Bd2c4,Bc4e5][%mdl 32]} h6 {[%emt 0:03:26] A05: Réti Opening: 1 Nf3 Nf6.} 9. a4 {[%emt 0:01:58]} Be6 {[%emt 0:05:21]} 10. Nc4 {[%emt 0:02:41]} d5 {[%emt 0:04:20] The position is equal.} 11. exd5 {[%emt 0:00:43]} Nxd5 {[%emt 0:03:03]} 12. Nfe5 {[%emt 0:01:30]} Nxe5 {[%emt 0:05:46]} 13. Nxe5 {[%emt 0:00:11]} Qc7 $2 {[%emt 0:00:20][%mdl 8192] [#]} (13... Kh7 $14) 14. Nxg6 $1 $18 {[%emt 0:00:43][%mdl 512] [#] And now Bxd5 would win.} Rfe8 $146 {[%emt 0:07:59]} (14... Rfd8 15. Nf4) ({Predecessor:} 14... Rfd8 15. Qe2 Nb4 16. Nf4 Bf5 17. Be4 Bxe4 18. dxe4 c4 19. Nh5 Bf8 20. Bf4 Qc5 {0-1 (80) Radice,M (1913)-Baltzopoulos,G (1957) Napoli 2013}) 15. Nf4 {[%emt 0:06:29]} Nxf4 {[%emt 0:03:46]} 16. Bxf4 {[%emt 0:00:06]} Qd7 {[%emt 0:00:05]} 17. Qh5 {[%emt 0:01:59][%csl LRc5,LRh6] Prevents Bd5.} Bg4 {[%emt 0:20:47]} 18. Qh4 {[%emt 0:04:31]} (18. Qxc5 $6 Rac8 19. Qxa7 Rxc2 $18) 18... Kh7 $2 {[%emt 0:07:00] [#]} (18... h5 19. h3 e5) 19. h3 {[%emt 0:01:00]} (19. Re5 $142 $1 {[%mdl 512]}) 19... Bf5 {[%emt 0:00:13]} 20. g4 {[%emt 0:03:05]} Bg6 {[%emt 0:04:29] [#]} 21. Bxh6 {[%emt 0:03:04]} Bxh6 $16 {[%emt 0:00:51]} 22. g5 {[%emt 0:00:04][%mdl 64] Inhibits f6. Pin} Rh8 {[%emt 0:00:04]} 23. gxh6 {[%emt 0:00:11]} ({Wrong is} 23. Qxh6+ $2 Kg8 24. Qxh8+ Kxh8 $19) 23... Rae8 {[%emt 0:02:15]} 24. Re5 {[%emt 0:01:18]} b6 {[%emt 0:02:09]} 25. Rae1 {[%emt 0:00:15][%cal Re5e7]} e6 {[%emt 0:02:33]} 26. Rg5 {[%emt 0:02:34]} Rhg8 {[%emt 0:01:53]} 27. Rg3 {[%emt 0:00:22]} (27. Be4 $16) 27... Qe7 {[%emt 0:02:21]} (27... Qd4 $14 28. Qxd4 cxd4) 28. Qf4 {[%emt 0:01:11]} Rd8 {[%emt 0:01:05]} (28... e5 $16 29. Qc4 Kxh6) 29. Be4 $18 {[%emt 0:02:48]} Rde8 {[%emt 0:08:24]} 30. h4 {[%emt 0:03:33][%cal Og3g6]} f5 $2 {[%emt 0:01:29]} (30... Bxe4 {is tougher.} 31. Rxe4 (31. Qxe4+ f5 $16) (31. dxe4 e5 $16) 31... Rxg3+ 32. fxg3 f5) 31. Bc6 $2 {[%emt 0:02:45]} (31. h5 Qf7 32. hxg6+ Rxg6 33. Kg2 $1) 31... Rc8 {[%emt 0:01:09]} (31... Ref8 $142 32. Bf3 Be8) 32. Bd5 {[%emt 0:00:54]} Bf7 {[%emt 0:05:49]} (32... Qc7 33. Qxc7+ Rxc7) 33. Qxf5+ {[%emt 0:00:11]} Kxh6 {[%emt 0:00:05]} 34. Bxe6 {[%emt 0:00:45]} (34. Rxe6+ $142 Bxe6 35. Qf4+ (35. Bxe6 Rcf8 $16) 35... Rg5 36. Bxe6 Rf8 37. hxg5+ Kg6 38. Qe4+ Kg7 39. Qe5+ Kg6 {[#]} 40. Bf5+ $1 {[%mdl 512]} Rxf5 41. Qxe7) 34... Rce8 {[%emt 0:00:39]} 35. Qf4+ {[%emt 0:00:22] Weighted Error Value: White=0.51/Black=1.01} 1-0

[Event "44th Chess Olympiad Women 2022"]
[Site "Chennai"]
[Date "2022.07.30"]
[Round "2.22"]
[White "Ptacnikova, Lenka"]
[Black "Borosova, Zuzana"]
[Result "1/2-1/2"]
[ECO "A07"]
[WhiteElo "2066"]
[BlackElo "2277"]
[Annotator "TA"]
[PlyCount "64"]
[EventDate "2022.07.29"]
[EventType "team-tourn"]
[EventCountry "IND"]
[SourceTitle "playchess.com"]
[Source "ChessBase"]
[SourceQuality "1"]
[WhiteTeam "Iceland"]
[BlackTeam "Slovakia"]
[WhiteTeamCountry "ISL"]
[BlackTeamCountry "SVK"]
[TimeControl "40/5400+30:1800+30"]

{[%evp 10,64,15,0,17,-16,-2,0,-5,-47,-48,-45,-43,-127,-115,-115,-115,-118,-116,-125,-106,-108,-101,-139,-138,-156,-138,-137,-133,-143,-135,-141,-126,-118,-123,-126,-135,-133,0,0,0,0,0,12,52,8,63,19,26,19,19,0,0,0,0,0,0]} 1. Nf3 {[%emt 0:00:05]} d5 {[%emt 0:00:33]} 2. g3 {[%emt 0:00:13]} c6 {[%emt 0:01:27]} 3. Bg2 {[%emt 0:00:13]} Bg4 {[%emt 0:00:39]} 4. h3 {[%emt 0:00:41]} Bh5 {[%emt 0:02:06]} 5. O-O {[%emt 0:00:35]} Nd7 {[%emt 0:00:46]} 6. d3 {[%emt 0:00:20]} e6 {[%emt 0:10:51] A07: Réti Opening: New York and Capablanca Systems.} 7. Qe1 {[%emt 0:00:34]} Bd6 {[%emt 0:03:45]} 8. e4 {[%emt 0:02:32]} Ne7 {[%emt 0:07:42]} 9. e5 {[%emt 0:12:59]} Bc7 {[%emt 0:01:39]} 10. d4 {[%emt 0:08:43]} c5 {[%emt 0:03:33] [#]} 11. Be3 $146 {[%emt 0:09:40]} (11. c3 $15) ({Predecessor:} 11. c3 O-O 12. b4 cxd4 13. cxd4 Bg6 14. Qd1 h6 15. Bb2 Nb6 16. Nbd2 Rc8 17. Rc1 {½-½ (35) Radulovic,B (2273)-Pucovski,M (2318) Croatia 2015}) 11... Bxf3 $17 {[%emt 0:04:35]} 12. Bxf3 {[%emt 0:00:05]} cxd4 {[%emt 0:00:11]} 13. Bxd4 {[%emt 0:00:21]} Nc6 {[%emt 0:00:13][%csl LRd4,LRe5]} 14. Be3 {[%emt 0:03:51]} Ndxe5 {[%emt 0:03:37]} 15. Bg2 {[%emt 0:00:33]} O-O {[%emt 0:02:54]} 16. b3 {[%emt 0:08:16] Prevents Nc4.} Bb6 {[%emt 0:09:58]} 17. Bxb6 {[%emt 0:01:09]} Qxb6 {[%emt 0:00:13]} 18. c3 {[%emt 0:02:30]} Rad8 {[%emt 0:13:23]} 19. Kh2 {[%emt 0:05:49]} Qc5 {[%emt 0:07:00]} 20. a4 {[%emt 0:03:22]} d4 {[%emt 0:05:49]} 21. b4 {[%emt 0:02:20] [#]} Qd6 {[%emt 0:02:03]} 22. b5 {[%emt 0:03:33] [#]} Na5 {[%emt 0:02:13]} 23. cxd4 {[%emt 0:11:48]} Nec4 {[%emt 0:06:34] Pair of Knights!} (23... Qxd4 $17 24. Ra2 b6) 24. Na3 $1 $11 {[%emt 0:08:43]} b6 {[%emt 0:02:09]} 25. Nc2 {[%emt 0:02:54]} Rd7 {[%emt 0:05:11]} 26. Qc3 {[%emt 0:05:49]} Rfd8 {[%emt 0:01:17]} 27. Rfe1 {[%emt 0:03:27]} Rc7 {[%emt 0:00:48]} (27... Qc7 $11) 28. Rad1 {[%emt 0:02:34]} Na3 {[%emt 0:01:45]} 29. Qxa3 {[%emt 0:00:04]} Rxc2 {[%emt 0:00:06] The position is equal.} 30. Qf3 {[%emt 0:00:49]} Rc4 {[%emt 0:01:38]} 31. d5 {[%emt 0:00:07] dxe6 is the strong threat.} e5 {[%emt 0:00:05]} 32. Qf5 {[%emt 0:01:04]} f6 {[%emt 0:00:38] And White is the lucky defender.  Weighted Error Value: White=0.13 (very precise) /Black=0.14 (very precise)} 1/2-1/2

[Event "44th Chess Olympiad Women 2022"]
[Site "Chennai"]
[Date "2022.07.30"]
[Round "2.22"]
[White "Thorsteinsdottir, Hallgerdur"]
[Black "Sucikova, Svetlana"]
[Result "0-1"]
[ECO "B12"]
[WhiteElo "1934"]
[BlackElo "2188"]
[Annotator "TA"]
[PlyCount "68"]
[EventDate "2022.07.29"]
[EventType "team-tourn"]
[EventCountry "IND"]
[SourceTitle "playchess.com"]
[Source "ChessBase"]
[SourceQuality "1"]
[WhiteTeam "Iceland"]
[BlackTeam "Slovakia"]
[WhiteTeamCountry "ISL"]
[BlackTeamCountry "SVK"]
[TimeControl "40/5400+30:1800+30"]

{[%evp 11,68,31,33,5,12,13,46,-20,2,-87,-86,-83,-67,-70,-79,-94,115,-91,-59,-52,-39,-52,-52,-39,-45,-35,-58,-69,-72,-61,-81,-152,-156,-146,-152,-146,-134,-131,-152,-138,-133,-181,-155,-310,-302,-618,-615,-589,-577,-607,-608,-608,-606,-607,-593,-592,-585,-1140,-1135]} 1. e4 {[%emt 0:00:08]} c6 {[%emt 0:01:30]} 2. d4 {[%emt 0:00:13]} d5 {[%emt 0:01:12]} 3. e5 {[%emt 0:00:38]} Bf5 {[%emt 0:01:09]} 4. Nf3 {[%emt 0:00:48]} e6 {[%emt 0:01:41]} 5. Be2 {[%emt 0:00:32]} Nd7 {[%emt 0:01:59]} 6. O-O {[%emt 0:00:57]} Ne7 {[%emt 0:02:57]} 7. a4 {[%emt 0:02:05] B12: Caro-Kann: Advance Variation.} c5 {[%emt 0:02:29]} 8. c4 {[%emt 0:02:50]} a6 {[%emt 0:14:02] [#]} 9. Nc3 $146 {[%emt 0:24:24]} (9. cxd5 $14 Nxd5 10. Nc3) ({Predecessor:} 9. dxc5 Nxc5 10. b4 Nd7 11. Bb2 dxc4 12. Na3 Nd5 13. Nxc4 Be7 14. Nd4 Bg6 15. f4 {1-0 (26) Barahona,C (2097)-Principe,G Lima 2007}) 9... dxc4 {[%emt 0:09:08]} 10. dxc5 {[%emt 0:08:20]} (10. d5 $11) 10... Nc6 $17 {[%emt 0:02:04]} 11. Bf4 {[%emt 0:10:41]} Nxc5 {[%emt 0:07:11]} 12. Bxc4 {[%emt 0:01:02]} Be7 {[%emt 0:00:21]} 13. Qe2 {[%emt 0:05:07]} Nd4 $2 {[%emt 0:14:02] [#]} (13... O-O $17 {and life is bright.}) 14. Qd1 $2 {[%emt 0:09:16]} (14. Nxd4 $1 $16 {is necessary to keep the advantage.} Qxd4 15. Be3) 14... Nxf3+ {[%emt 0:12:13]} 15. Qxf3 {[%emt 0:00:07]} Qb6 {[%emt 0:05:52]} 16. Qe2 {[%emt 0:07:55]} O-O {[%emt 0:01:10]} 17. Be3 {[%emt 0:00:39]} Qc6 {[%emt 0:05:44]} 18. b4 {[%emt 0:03:44]} Nd7 {[%emt 0:00:00][%csl LRb4,LRe5]} 19. b5 {[%emt 0:04:13]} Qc7 {[%emt 0:00:00]} 20. bxa6 {[%emt 0:01:24]} bxa6 {[%emt 0:00:00]} 21. f4 {[%emt 0:01:31]} (21. Bd4 $142) 21... Rfc8 {[%emt 0:01:50][%cal Bf8c8,Bc8c7,Bc7c1,Bc1c4,Bc4f4][%mdl 32]} 22. Bxa6 {[%emt 0:00:30]} ({Not} 22. Rad1 $2 Qxc4 23. Rxd7 Qxc3 $19) 22... Rxa6 {[%emt 0:01:30]} ({But not} 22... Qxc3 23. Rfc1 Qxa1 24. Rxa1 $18) 23. Qxa6 {[%emt 0:01:55] aiming for Nb5.} Qxc3 {[%emt 0:00:02]} 24. Rfe1 {[%emt 0:00:26]} Bd3 $36 {[%emt 0:04:04][%cal Bf5d3,Bd3e4,Be4d5][%mdl 2080] Keeping White busy. Black is more active.} 25. Qb7 {[%emt 0:00:17]} Rc7 {[%emt 0:01:29]} 26. Qa8+ {[%emt 0:00:40] [#]} (26. Qf3 $17 {is a better defense.}) 26... Nf8 $1 $19 {[%emt 0:01:12]} 27. Qb8 $2 {[%emt 0:05:56]} (27. Qf3 $17) 27... Be4 {[%emt 0:02:49]} 28. Rac1 $2 {[%emt 0:01:13] [#]} (28. Qb5) 28... Qxe3+ $3 {[%emt 0:00:16][%mdl 512] Black is clearly winning.} 29. Rxe3 {[%emt 0:00:18]} Rxc1+ {[%emt 0:00:03]} 30. Kf2 {[%emt 0:00:10]} Bc5 {[%emt 0:00:04]} 31. Qb3 {[%emt 0:01:28]} Bd5 {[%emt 0:03:11] This bishop pair is nice.} 32. Qb2 {[%emt 0:03:22]} Rc4 {[%emt 0:00:06]} 33. Ke2 {[%emt 0:00:47]} Rxf4 {[%emt 0:01:31] ...Bc4+ is the strong threat.} 34. a5 {[%emt 0:00:57]} Bc4+ {[%emt 0:00:30] Weighted Error Value: White=0.60/Black=0.16 (very precise)} 0-1